fUSD/lending_fUSD_20260309
["ID","MTS","AMOUNT","RATE_DAILY","PERIOD"]
[408008458,1773018638429,-152.48,0.000179,2]
[408008459,1773018638445,-1311.82,0.00017936,2]
[408008460,1773018638460,-587.0,0.00017965,2]
[408008461,1773018638476,-494.64624274,0.00017973,2]
[408008462,1773018638492,-500.0,0.00017973,2]
[408008463,1773018638507,-500.0,0.00017973,2]
[408008464,1773018638522,-500.0,0.00017973,2]
[408008465,1773018638538,-297.81294815,0.00017975,2]
[408008466,1773018638553,-294.10248427,0.00017975,2]
[408008467,1773018638568,-500.0,0.00017975,2]
[408008468,1773018638583,-623.45577212,0.00017975,2]
[408008469,1773018638599,-500.0,0.00017975,2]
[408008470,1773018638614,-500.0,0.00017975,2]
[408008471,1773018638629,-5592.8341,0.00017976,2]
[408008472,1773018638644,-422415.78959459,0.00017976,2]
[408008473,1773018638676,-435.27879915,0.00017976,2]
[408008474,1773018638702,-1692.72681327,0.00017976,2]
[408008475,1773018638728,-3216.62990867,0.00017976,2]
[408008476,1773018638750,-1278.76251833,0.00017976,2]
[408008477,1773018638772,-1156.67943435,0.00017976,2]
[408008478,1773018638822,-18370.3637153,0.00017976,2]
[408008479,1773018638842,-67603.88550096,0.00017976,2]
[408008481,1773018640800,-2300.0,0.00017976,2]
[408008482,1773018640812,-1953.41692216,0.00017976,2]
[408008483,1773018640823,-1979576.46679322,0.00017976,2]
[408008484,1773018640833,-3339.43,0.00017976,2]
[408008485,1773018640842,-3339.43,0.00017976,2]
[408008486,1773018640851,-3339.43,0.00017976,2]
[408008487,1773018640861,-3339.43,0.00017976,2]
[408008488,1773018640871,-3339.43,0.00017976,2]
[408008489,1773018640882,-3339.43,0.00017976,2]
[408008490,1773018640892,-3339.43,0.00017976,2]
[408008491,1773018640901,-3760.94,0.00017976,2]
[408008492,1773018640911,-12798.57558659,0.0001799,2]
[408008493,1773018640920,-43894.92938619,0.00018,2]
[408008494,1773018640930,-3315.0,0.00018016,2]
[408008495,1773018640940,-700.0,0.00018082,7]
[408008496,1773018640950,-2100.0,0.00018082,7]
[408008497,1773018640959,-1500.0,0.00018082,7]
[408008498,1773018640969,-280.79,0.00018139,2]
[408008499,1773018640978,-1373.77458756,0.00018186,2]
[408008500,1773018640988,-152.0,0.00018201,4]
[408008501,1773018640998,-10717.72710363,0.00018233,2]
[408008502,1773018641007,-1941.79466407,0.00018233,2]
[408008503,1773018641016,-501.0,0.00018235,3]
[408008504,1773018641025,-152.48,0.00018388,2]
[408008505,1773018641035,-2804.0,0.000184,2]
[408008506,1773018641046,-152.0,0.00018516,5]
[408008507,1773018641055,-1000.0,0.00018521,2]
[408008508,1773018641064,-1000.0,0.00018521,2]
[408008509,1773018641074,-1000.0,0.00018521,2]
[408008510,1773018641084,-10717.72710363,0.00018566,2]
[408008511,1773018641093,-1941.79466407,0.00018567,2]
[408008512,1773018641103,-1373.77458756,0.00018614,2]
[408008513,1773018641112,-736.0,0.00018629,2]
[408008514,1773018641121,-341.34492775,0.00018689,7]
[408008515,1773018641130,-683.0,0.00018704,2]
[408008516,1773018641139,-161.0,0.0001872,2]
[408008517,1773018641147,-2805.0,0.0001872,2]
[408008518,1773018641157,-847.0,0.0001872,2]
[408008519,1773018641168,-174.9,0.00018789,2]
[408008520,1773018641177,-152.0,0.00018832,6]
[408008521,1773018641186,-152.48,0.00018875,2]
[408008522,1773018641195,-453.11,0.00018875,2]
[408008523,1773018641204,-1877.83822342,0.00018888,2]
[408008524,1773018641214,-953.10110687,0.00018888,2]
[408008525,1773018641223,-10717.72710363,0.000189,2]
[408008526,1773018641232,-1941.79466407,0.000189,2]
[408008527,1773018641241,-683.0,0.00018955,2]
[408008528,1773018641249,-280.79,0.00018964,2]
[408008529,1773018641258,-683.0,0.00018988,2]
[408008530,1773018641267,-2624.4104093,0.00019,2]
[408008531,1773018641276,-469.3746758,0.00019,2]
[408008532,1773018641286,-2805.0,0.0001904,2]
[408008533,1773018641295,-2805.0,0.0001904,2]
[408008534,1773018641304,-1373.77458756,0.00019043,2]
[408008535,1773018641313,-489.71509886,0.00019068,2]
[408008536,1773018641321,-1500.0,0.00019068,2]
[408008537,1773018641330,-877.24,0.00019083,2]
[408008538,1773018641340,-847.0,0.00019094,2]
[408008539,1773018641349,-350.0,0.00019125,2]
[408008540,1773018641358,-847.0,0.00019142,2]
[408008541,1773018641368,-657.3,0.00019142,2]
[408008542,1773018641378,-152.0,0.00019147,7]
[408008543,1773018641387,-847.0,0.00019158,2]
[408008544,1773018641396,-1390.28858434,0.00019163,2]
[408008545,1773018641405,-241.26843898,0.00019163,2]
[408008546,1773018641415,-700.0,0.00019178,7]
[408008547,1773018641424,-2100.0,0.00019178,7]
[408008548,1773018641434,-1500.0,0.00019178,7]
[408008549,1773018641444,-515.16,0.00019178,30]
[408008550,1773018641453,-597.35362355,0.00019189,7]
[408008551,1773018641462,-597.35362355,0.00019189,7]
[408008552,1773018641471,-781.25,0.00019192,2]
[408008553,1773018641479,-2000.0,0.000192,2]
[408008554,1773018641488,-172.82949155,0.000192,7]
[408008555,1773018641497,-350.0,0.00019209,2]
[408008556,1773018641506,-847.0,0.00019221,2]
[408008557,1773018641515,-657.3,0.00019228,2]
[408008558,1773018641524,-10717.72710363,0.00019233,2]
[408008559,1773018641533,-1941.79466407,0.00019233,2]
[408008560,1773018641543,-353.0,0.00019239,2]
[408008561,1773018641552,-160.0,0.00019241,2]
[408008562,1773018641561,-172.82949155,0.00019241,2]
[408008563,1773018641570,-683.0,0.00019263,2]
[408008564,1773018641579,-8500.0,0.000193,7]
[408008565,1773018641588,-657.3,0.00019313,2]
[408008566,1773018641597,-9999.99,0.00019339,2]
[408008567,1773018641606,-350.0,0.00019341,2]
[408008568,1773018641855,-847.0,0.0001935,2]
[408008569,1773018641883,-877.24,0.00019357,2]
[408008570,1773018641892,-847.0,0.0001936,2]
[408008571,1773018641901,-152.48,0.00019363,2]
[408008572,1773018641911,-174.9,0.00019393,2]
[408008573,1773018641920,-657.3,0.00019399,2]
[408008574,1773018641931,-2000.0,0.000194,2]
[408008575,1773018641941,-1700.0,0.000194,7]
[408008576,1773018641950,-1213.0,0.00019435,2]
[408008577,1773018641959,-922.0,0.00019435,2]
[408008578,1773018641968,-150.0,0.00019437,2]
[408008579,1773018641978,-500.0,0.00019437,2]
[408008580,1773018641987,-150.0,0.00019437,2]
[408008581,1773018641997,-150.0,0.00019437,2]
[408008582,1773018642007,-150.0,0.00019437,2]
[408008583,1773018642016,-500.0,0.00019437,2]
[408008584,1773018642025,-500.0,0.00019437,2]
[408008585,1773018642034,-500.0,0.00019437,2]
[408008586,1773018642043,-150.0,0.00019437,2]
[408008587,1773018642052,-150.0,0.00019437,2]
[408008588,1773018642061,-500.0,0.00019437,2]
[408008589,1773018642070,-152.0,0.00019463,8]
[408008590,1773018642079,-781.25,0.00019466,2]
[408008591,1773018642088,-501.0,0.00019471,4]
[408008592,1773018642098,-1373.77458756,0.00019471,2]
[408008593,1773018642106,-5992.0,0.00019484,2]
[408008594,1773018642115,-2460.0,0.00019484,2]
[408008595,1773018642124,-657.3,0.00019485,2]
[408008596,1773018642133,-150.0,0.00019492,2]
[408008597,1773018642142,-500.0,0.00019492,2]
[408008598,1773018642151,-150.0,0.00019492,2]
[408008599,1773018642160,-200.41015646,0.00019492,2]
[408008600,1773018642171,-500.0,0.00019492,2]
[408008601,1773018642179,-500.0,0.00019492,2]
[408008602,1773018642188,-500.0,0.00019492,2]
[408008603,1773018642197,-150.0,0.00019492,2]
[408008604,1773018642207,-500.0,0.00019492,2]
[408008605,1773018642215,-500.0,0.00019492,2]
[408008606,1773018642224,-5753.887,0.00019492,2]
[408008607,1773018642233,-174.492,0.00019492,2]
[408008608,1773018642243,-500.0,0.00019492,2]
[408008609,1773018642252,-212.18393224,0.00019492,2]
[408008610,1773018642260,-500.0,0.00019492,2]
[408008611,1773018642269,-500.0,0.00019492,2]
[408008612,1773018642278,-300.0,0.000195,2]
[408008613,1773018642287,-1700.0,0.000195,7]
[408008614,1773018642296,-350.0,0.00019529,2]
[408008615,1773018642305,-200.0,0.00019547,2]
[408008616,1773018642315,-512.0,0.00019547,2]
[408008617,1773018642324,-159.45374442,0.00019547,2]
[408008618,1773018642333,-199.5192988,0.00019547,2]
[408008619,1773018642342,-350.0,0.00019547,2]
[408008620,1773018642351,-636.0,0.00019547,2]
[408008621,1773018642359,-250.0,0.00019547,2]
[408008622,1773018642369,-500.0,0.00019547,2]
[408008623,1773018642378,-500.0,0.00019547,2]
[408008624,1773018642387,-500.0,0.00019547,2]
[408008625,1773018642396,-500.0,0.00019547,2]
[408008626,1773018642404,-500.0,0.00019547,2]
[408008627,1773018642413,-3292.0,0.0001955,2]
[408008628,1773018642422,-10717.72710363,0.00019567,2]
[408008629,1773018642431,-1941.79466407,0.00019567,2]
[408008630,1773018642440,-657.3,0.00019571,2]
[408008631,1773018642449,-153.27024438,0.00019583,2]
[408008632,1773018642458,-902.43671969,0.000196,2]
[408008633,1773018642467,-616.64573758,0.000196,2]
[408008634,1773018642476,-1700.0,0.000196,7]
[408008635,1773018642485,-1500.0,0.000196,2]
[408008637,1773018642494,-1500.0,0.000196,2]
[408008638,1773018642504,-1500.0,0.000196,2]
[408008639,1773018642513,-645.06949159,0.00019601,2]
[408008640,1773018642522,-500.0,0.00019602,2]
[408008641,1773018642531,-500.0,0.00019602,2]
[408008642,1773018642541,-500.0,0.00019602,2]
[408008643,1773018642550,-500.0,0.00019602,2]
[408008644,1773018642560,-2000.0,0.00019616,2]
[408008645,1773018642570,-491.0,0.00019626,2]
[408008646,1773018642580,-877.24,0.00019631,2]
[408008647,1773018642589,-400.0,0.0001965,2]
[408008648,1773018642599,-500.0,0.00019656,2]
[408008649,1773018642609,-500.0,0.00019656,2]
[408008650,1773018642619,-500.0,0.00019656,2]
[408008651,1773018642628,-500.0,0.00019656,2]
[408008652,1773018642637,-657.3,0.00019657,2]
[408008653,1773018642647,-823.0,0.00019662,2]
[408008654,1773018642656,-150.0,0.00019673,2]
[408008656,1773018642666,-847.0,0.0001968,2]
[408008657,1773018642675,-1700.0,0.000197,7]
[408008658,1773018642690,-2000.0,0.000197,2]
[408008659,1773018642699,-2000.0,0.000197,2]
[408008660,1773018642708,-2000.0,0.000197,2]
[408008661,1773018642717,-3305.9958,0.0001971,2]
[408008662,1773018642727,-1000.0,0.0001971,2]
[408008663,1773018642736,-423.12,0.00019711,2]
[408008664,1773018642746,-413.0,0.00019711,2]
[408008665,1773018642758,-500.0,0.00019711,2]
[408008666,1773018642767,-500.0,0.00019711,2]
[408008667,1773018642778,-500.0,0.00019711,2]
[408008668,1773018642788,-1311.82,0.0001973,2]
[408008669,1773018642797,-150.0,0.00019732,2]
[408008670,1773018642807,-150.0,0.00019734,2]
[408008671,1773018642816,-781.25,0.0001974,2]
[408008672,1773018642826,-657.3,0.00019743,2]
[408008673,1773018642835,-300.0,0.0001975,2]
[408008674,1773018642844,-693.0,0.00019757,2]
[408008675,1773018642854,-150.0,0.00019757,2]
[408008676,1773018642863,-150.0,0.00019757,2]
[408008677,1773018642872,-263.0,0.00019757,2]
[408008678,1773018642882,-152.8085332,0.00019765,2]
[408008679,1773018642891,-531.1610732,0.00019766,2]
[408008680,1773018642901,-537.8007681,0.00019766,2]
[408008681,1773018642910,-500.0,0.00019766,2]
[408008682,1773018642919,-152.0,0.00019778,9]
[408008683,1773018642929,-150.0,0.00019788,2]
[408008684,1773018642938,-280.79,0.00019788,2]
[408008685,1773018642948,-1900.0,0.000198,7]
[408008686,1773018642957,-2000.0,0.000198,2]
[408008687,1773018642967,-2000.0,0.000198,2]
[408008688,1773018642976,-2000.0,0.000198,2]
[408008689,1773018642985,-2000.0,0.000198,2]
[408008690,1773018642995,-141628.69642043,0.0001981,2]
[408008691,1773018643004,-20488.33629454,0.0001981,2]
[408008692,1773018643014,-500.0,0.00019821,2]
[408008693,1773018643023,-218.77,0.00019825,2]
[408008694,1773018643032,-657.3,0.00019828,2]
[408008695,1773018643041,-152.48,0.0001985,2]
[408008696,1773018643050,-250.0,0.00019855,2]
[408008697,1773018643059,-21651.1344234,0.00019861,2]
[408008698,1773018643068,-500.0,0.00019876,2]
[408008699,1773018643078,-25000.0,0.00019891,3]
[408008700,1773018643088,-5800.0,0.00019892,2]
[408008701,1773018643097,-491.0,0.00019897,2]
[408008702,1773018643106,-300.0,0.00019899,2]
[408008703,1773018643115,-758.19954278,0.000199,2]
[408008704,1773018643124,-2000.0,0.000199,2]
[408008705,1773018643134,-2000.0,0.000199,2]
[408008707,1773018643145,-2000.0,0.000199,2]
[408008709,1773018643154,-2000.0,0.000199,2]
[408008711,1773018643163,-2000.0,0.000199,2]
[408008712,1773018643172,-25000.0,0.000199,3]
[408008713,1773018643182,-2000.0,0.000199,2]
[408008714,1773018643191,-1541.03721467,0.000199,2]
[408008715,1773018643200,-250.0,0.000199,2]
[408008716,1773018643210,-10717.72710363,0.000199,2]
[408008717,1773018643219,-5800.0,0.000199,2]
[408008718,1773018643231,-24422.82791355,0.000199,3]
[408008719,1773018643241,-1941.79466407,0.000199,2]
[408008720,1773018643250,-1373.77458756,0.000199,2]
[408008722,1773018643258,-1877.83822342,0.000199,2]
[408008724,1773018643268,-953.10110687,0.000199,2]
[408008726,1773018643277,-3991.55051219,0.000199,2]
[408008728,1773018643286,-458.91,0.00019905,2]
[408008730,1773018643296,-657.3,0.00019914,2]
[408008732,1773018643305,-250.0,0.00019926,2]
[408008734,1773018643314,-500.0,0.0001993,2]
[408008736,1773018643323,-165.0,0.00019943,2]
[408008738,1773018643332,-250.0,0.0001995,2]
[408008739,1773018643341,-984.10353533,0.0001995,15]
[408008740,1773018643350,-250.0,0.00019973,2]
[408008742,1773018643360,-150.0,0.00019979,2]
[408008743,1773018643370,-119258.6679168,0.0001998,2]
[408008744,1773018643380,-1621.2609898,0.00019981,2]
[408008745,1773018643390,-3336.9532775,0.00019981,2]
[408008746,1773018643400,-775.1040228,0.00019981,2]
[408008747,1773018643409,-500.0,0.00019985,2]
[408008748,1773018643418,-150.0,0.00019986,2]
[408008749,1773018643428,-11817.9352022,0.00019997,2]
[408008750,1773018643437,-3062.0013507,0.00019997,2]
[408008751,1773018643447,-300.0,0.00019999,2]
[408008752,1773018643457,-3894.0,0.0002,2]
[408008753,1773018643466,-634325.33462463,0.0002,2]
[408008754,1773018643476,-25711.51342928,0.0002,2]
[408008755,1773018643485,-1883501.91625275,0.0002,2]
[408008756,1773018643676,-69.32886232,0.00014206,2]
[408008757,1773018643691,-430.67113768,0.00014206,2]
[408008758,1773018643701,-414.0,0.00019484,2]
[408008759,1773018643710,-1414.67729232,0.000196,2]
[408008760,1773018643726,-85.32270768,0.000196,2]
[408008761,1773018643735,-1893.30005257,0.0002,2]
[408008762,1773018645685,-300.0,0.00019178,2]
[408008763,1773018645793,-700.0,0.00019178,2]
[408008764,1773018645803,-1000.0,0.00019452,2]
[408008765,1773018645812,-4613.38541179,0.0002,2]
[408008766,1773018645823,-9102.88517705,0.0002,2]
[408008767,1773018645834,-10364.21135554,0.0002,2]
[408008768,1773018645903,-13459.0,0.0002,2]
[408008769,1773018645960,-276.30108168,0.00019726,2]
[408008774,1773018728009,156.69,0.0002,120]
[408008775,1773018736135,936.82264414,8e-05,2]
[408008776,1773018736805,500.0,8e-05,2]
[408008777,1773018737282,500.0,8e-05,2]
[408008778,1773018737744,721.55039257,8e-05,2]
[408008779,1773018737952,500.0,8e-05,2]
[408008780,1773018740057,500.0,8e-05,2]
[408008781,1773018742211,500.0,8e-05,2]
[408008782,1773018742569,637.93300858,8e-05,2]
[408008783,1773018743144,500.0,8e-05,2]
[408008784,1773018743175,500.0,8e-05,2]
[408008785,1773018743600,500.0,8e-05,2]
[408008786,1773018744082,500.0,8e-05,2]
[408008787,1773018786654,158.0,0.00011503,2]
[408008788,1773018794899,-1200.0,0.000147,5]
[408008789,1773018794919,-400.0,0.000147,5]
[408008792,1773018886118,-1516.0,0.000148,5]
[408008793,1773018895929,-158.02,0.00014,2]
[408008794,1773018895963,-166.58,0.00014181,2]
[408008795,1773018896004,-5000.0,0.00014491,2]
[408008796,1773018896048,-3795.36454355,0.00014757,2]
[408008797,1773018897906,-685.60363081,0.00014757,2]
[408008798,1773018897943,-158.02,0.0001478,2]
[408008799,1773018897979,-984.0,0.000148,5]
[408008800,1773018898012,-800.0,0.000148,5]
[408008801,1773018898045,-300.0,0.00014899,2]
[408008802,1773018898080,-3800.0,0.000149,5]
[408008803,1773018898106,-1200.0,0.000149,5]
[408008804,1773018898126,-1192.34091274,0.00014906,2]
[408008805,1773018900136,-4561.54608726,0.00014906,2]
[408008806,1773018900159,-174.492,0.00014906,2]
[408008807,1773018900182,-500.0,0.00015,30]
[408008808,1773018900205,-500.0,0.00015,30]
[408008809,1773018900226,-500.0,0.00015,30]
[408008810,1773018900248,-500.0,0.00015,30]
[408008811,1773018900270,-500.0,0.00015,30]
[408008812,1773018900295,-500.0,0.00015,30]
[408008813,1773018900319,-500.0,0.00015,30]
[408008814,1773018900342,-500.0,0.00015,30]
[408008815,1773018900368,-383.92645629,0.00015,30]
[408008816,1773018903471,-300.0,0.00014999,2]
[408008817,1773018903494,-1200.0,0.00014999,2]
[408008818,1773018903515,-300.0,0.00014999,2]
[408008819,1773018903537,-300.0,0.00014999,2]
[408008820,1773018903557,-116.07354371,0.00015,30]
[408008821,1773018903577,-778.49628929,0.00015,30]
[408008822,1773018903600,-500.0,0.00015,30]
[408008823,1773018903622,-500.0,0.00015,30]
[408008824,1773018903642,-500.0,0.00015,30]
[408008825,1773018903665,-500.0,0.00015,30]
[408008826,1773018903687,-698.86783115,0.00015,30]
[408008827,1773018903709,-635.46234956,0.00015,30]
[408008828,1773018903730,-507.13807355,0.00015,30]
[408008829,1773018910007,300.0,0.00014999,2]
[408008830,1773018960955,186.00497268,0.00015072,2]
[408008831,1773019035878,500.0,0.00015,30]
[408008832,1773019036359,500.0,0.00015,30]
[408008833,1773019036405,500.0,0.00015,30]
[408008834,1773019038112,297.92148361,0.00015,30]
[408008835,1773019038132,202.07851639,0.00015,30]
[408008836,1773019038182,500.0,0.00015,30]
[408008837,1773019038210,500.0,0.00015,30]
[408008838,1773019038265,500.0,0.00015,30]
[408008839,1773019038325,500.0,0.00015,30]
[408008840,1773019038354,500.0,0.00015,30]
[408008841,1773019038393,500.0,0.00015,30]
[408008842,1773019038448,500.0,0.000101,2]
[408008843,1773019038480,500.0,0.00015,30]
[408008844,1773019038524,500.0,0.00015,30]
[408008845,1773019038563,500.0,0.000101,2]
[408008846,1773019038594,500.0,0.000101,2]
[408008847,1773019038629,500.0,0.000101,2]
[408008848,1773019038714,759.56299303,0.000101,2]
[408008849,1773019038750,500.0,0.000101,2]
[408008850,1773019038958,500.0,0.000101,2]
[408008851,1773019039248,500.0,0.000101,2]
[408008852,1773019039411,500.0,0.000101,2]
[408008853,1773019039725,158.32303413,0.000101,2]
[408008854,1773019039746,341.67696587,0.000101,2]
[408008855,1773019039881,741.70361886,0.000101,2]
[408008856,1773019040215,500.0,0.000101,2]
[408008857,1773019043326,500.0,0.00015,30]
[408008858,1773019043813,500.0,0.00015,30]
[408008859,1773019044457,500.0,0.00015,30]
[408008860,1773019044813,500.0,0.00015,30]
[408008861,1773019045306,500.0,0.00015,30]
[408008862,1773019045792,500.0,0.000101,2]
[408008863,1773019046275,500.0,0.000101,2]
[408008864,1773019046428,500.0,0.00015,30]
[408008865,1773019046786,500.0,0.000101,2]
[408008866,1773019046894,500.0,0.000101,2]
[408008867,1773019047258,500.0,0.000101,2]
[408008868,1773019047308,612.21875506,0.00015,30]
[408008869,1773019047741,832.56983976,0.000101,2]
[408008870,1773019048821,500.0,0.00015,30]
[408008871,1773019048887,91.795364,0.000101,2]
[408008872,1773019048915,408.204636,0.000101,2]
[408008873,1773019225475,979.45,7.271e-05,2]
[408008874,1773019225509,979.45,7.654e-05,2]
[408008875,1773019225536,979.45,8.037e-05,2]
[408008876,1773019225591,979.45,8.419e-05,2]
[408008877,1773019225656,979.45,8.802e-05,2]
[408008878,1773019225731,979.45,9.185e-05,2]
[408008879,1773019225774,979.45,9.568e-05,2]
[408008880,1773019225911,979.45,9.95e-05,2]
[408008881,1773019226108,979.45,0.00010333,2]
[408008882,1773019226315,979.45,0.00010716,2]
[408008883,1773019226533,205.51,0.00011098,2]
[408008884,1773019226559,773.94,0.00011098,2]
[408008885,1773019226866,979.45,0.00011481,2]
[408008886,1773019236533,-979.45,0.00011864,2]
[408008887,1773019337275,576.36919382,8e-05,2]
[408008888,1773019341564,500.0,8e-05,2]
[408008889,1773019342071,500.0,8e-05,2]
[408008890,1773019342766,500.0,8e-05,2]
[408008891,1773019342845,814.70211509,8e-05,2]
[408008892,1773019342975,500.0,8e-05,2]
[408008893,1773019343402,500.0,8e-05,2]
[408008894,1773019343877,600.0,8e-05,2]
[408008895,1773019344862,962.56919857,8e-05,2]
[408008896,1773019488298,-979.45,0.00012247,2]
[408008897,1773019488326,-198.89531717,0.00012388,2]
[408008898,1773019488353,-271.50227644,0.00012529,2]
[408008899,1773019488381,-979.45,0.00012629,2]
[408008900,1773019488411,-1623.638989,0.00012847,2]
[408008901,1773019488440,-197.8277728,0.00012912,2]
[408008902,1773019488470,-519.03128918,0.00013012,2]
[408008903,1773019488660,-460.41871082,0.00013012,2]
[408008904,1773019488709,-979.45,0.00013395,2]
[408008905,1773019488738,-480.0,0.0001347,2]
[408008906,1773019488764,-300.0,0.0001347,2]
[408008907,1773019488800,-300.0,0.0001347,2]
[408008908,1773019488840,-5000.0,0.00013471,2]
[408008909,1773019492115,-250.0,0.00013471,2]
[408008910,1773019501119,300.0,0.00013698,2]
[408008911,1773019501252,1200.0,0.00013698,2]
[408008913,1773019614153,-299.99,0.00013699,2]
[408008914,1773019614174,-312.09,0.00013699,2]
[408008915,1773019614194,-3039.90126936,0.00013699,2]
[408008916,1773019621189,300.0,0.00013698,2]
[408008917,1773019622147,150.0,0.00013698,2]
[408008918,1773019623598,300.0,0.00013698,2]
[408008919,1773019625970,193.5397729,0.00013599,2]
[408008921,1773019638135,500.0,8.699e-05,2]
[408008922,1773019638572,500.41699955,8.699e-05,2]
[408008923,1773019638676,500.0,8.699e-05,2]
[408008924,1773019638878,500.0,8.699e-05,2]
[408008925,1773019639196,500.0,8.699e-05,2]
[408008926,1773019639395,500.0,8.699e-05,2]
[408008927,1773019639686,500.0,8.699e-05,2]
[408008928,1773019639784,756.72912521,0.00013699,2]
[408008929,1773019639859,500.0,8.699e-05,2]
[408008930,1773019640175,512.43213366,8.699e-05,2]
[408008931,1773019645356,500.0,8.699e-05,2]
[408008932,1773019645735,500.0,8.699e-05,2]
[408008933,1773019646218,500.0,8.699e-05,2]
[408008934,1773019647850,800.0,8.699e-05,2]
[408008935,1773019648074,-3064.16710579,0.00013699,2]
[408008936,1773019648105,-1422.23837515,0.00013699,2]
[408008937,1773019648137,500.0,8.699e-05,2]
[408008938,1773019648160,-7155.5332497,0.00013699,2]
[408008939,1773019648454,786.47100001,8.699e-05,2]
[408008940,1773019648661,500.0,8.699e-05,2]
[408008941,1773019649140,500.0,8.699e-05,2]
[408008942,1773019649635,792.47317605,8.699e-05,2]
[408008943,1773019650896,-698.81,0.00013699,2]
[408008944,1773019650920,-8602.39,0.00013699,2]
[408008945,1773019652264,500.0,8.699e-05,2]
[408008946,1773019652731,858.55463612,8.699e-05,2]
[408008948,1773019657123,500.0,8.699e-05,2]
[408008949,1773019657598,500.0,8.699e-05,2]
[408008950,1773019658984,500.0,8.699e-05,2]
[408008951,1773019659024,500.0,8.699e-05,2]
[408008952,1773019659513,500.0,8.699e-05,2]
[408008953,1773019659994,500.0,8.699e-05,2]
[408008954,1773019660466,709.3557087,8.699e-05,2]
[408008957,1773019771110,-430.6711,0.00013599,2]
[408008958,1773019771132,-1132.398128,0.00013609,2]
[408008960,1773019831910,-262.0,0.00013596,2]
[408008961,1773019831920,-1438.99268707,0.00013596,2]
[408008962,1773019831969,-326.32771488,0.00013596,2]
[408008963,1773019831978,-5874.331872,0.00013609,2]
[408008964,1773019831988,-150.36279529,0.00013664,2]
[408008965,1773019831997,-1200.0,0.00013689,2]
[408008966,1773019832006,-521.71531592,0.0001369,2]
[408008967,1773019832016,-1200.0,0.00013698,2]
[408008968,1773019832027,-300.0,0.00013698,2]
[408008969,1773019832037,-5305.71,0.00013699,2]
[408008970,1773019832046,-430.25,0.00013699,2]
[408008971,1773019832055,-999.99,0.00013699,2]
[408008972,1773019832066,-150.99,0.00013699,2]
[408008973,1773019832078,-600.0,0.00013717,2]
[408008974,1773019832087,-1208.0,0.00013736,2]
[408008975,1773019832096,-979.45,0.00013777,2]
[408008976,1773019832106,-150.99,0.00013777,2]
[408008977,1773019832115,-193.53977288,0.0001383,2]
[408008978,1773019832124,-551.03435131,0.00013843,2]
[408008979,1773019832133,-188.49,0.00014,2]
[408008980,1773019832142,-216.0,0.00014001,2]
[408008981,1773019832151,-388.0,0.00014029,2]
[408008982,1773019832160,-520.0,0.00014045,2]
[408008983,1773019832176,-454.0,0.00014057,2]
[408008984,1773019832455,-193.53977288,0.0001406,2]
[408008985,1773019832464,-150.0,0.00014072,2]